bitfinex-derivatives/quotes_BTCF0:USTF0_20241130
["timestamp","ask_amount","ask_price","bid_price","bid_amount"]
[1732965071437,0.20827176,96370.0,96369.0,0.05486]
[1732965072029,0.20827176,96370.0,96369.0,0.05686]
[1732965075043,0.15641076,96370.0,96369.0,0.05686]
[1732965075548,0.15481633,96371.0,96370.0,0.05186]
[1732965075741,0.0323,96372.0,96371.0,0.051859]
[1732965076233,0.15582842,96372.0,96371.0,0.051859]
[1732965076638,0.15582842,96372.0,96369.0,0.005]
[1732965076639,0.15582842,96378.0,96369.0,0.005]
[1732965076839,0.15582842,96378.0,96377.0,0.051856]
[1732965077036,0.15582842,96372.0,96370.0,0.05186]
[1732965077350,0.051858,96374.0,96373.0,0.051856]
[1732965077844,0.2077584,96374.0,96373.0,0.051856]
[1732965078148,0.1559004,96374.0,96373.0,0.051856]
[1732965078548,0.05427849,96380.0,96374.0,0.051857]
[1732965078549,0.051857,96375.0,96374.0,0.051857]
[1732965078950,0.20683373,96375.0,96374.0,0.051857]
[1732965079653,0.20683373,96375.0,96374.0,0.052857]
[1732965079854,0.20683373,96375.0,96374.0,0.053857]
[1732965082554,0.20683373,96375.0,96374.0,0.002]
[1732965085745,0.20683373,96375.0,96374.0,0.053857]
[1732965090859,0.01240785,96387.0,96374.0,0.41516165]
[1732965091046,0.00155656,96395.0,96384.0,0.3608]
[1732965091247,0.00155656,96395.0,96390.0,0.051849]
[1732965091248,0.051848,96392.0,96390.0,0.051849]
[1732965091750,0.051848,96392.0,96374.0,0.36330465]
[1732965091751,0.051849,96389.0,96379.0,0.051855]
[1732965091945,0.05185,96388.0,96383.0,0.051852]
[1732965092145,0.05185,96388.0,96384.0,0.051852]
[1732965092146,0.20760322,96388.0,96384.0,0.051852]
[1732965092547,0.05185,96388.0,96384.0,0.051852]
[1732965092748,0.15575322,96387.0,96386.0,0.051851]
[1732965094252,0.15575322,96387.0,96379.0,0.007]
[1732965094457,0.051854,96380.0,96379.0,0.054855]
[1732965094646,0.051854,96380.0,96379.0,0.051855]
[1732965094957,0.20663233,96380.0,96379.0,0.051855]
[1732965095358,0.20663233,96380.0,96379.0,0.052855]
[1732965095546,0.20663233,96380.0,96379.0,0.001]
[1732965095862,0.06743833,96380.0,96379.0,0.414071]
[1732965096252,0.06743833,96380.0,96379.0,0.413071]
[1732965097957,0.06743833,96380.0,96379.0,0.416071]
[1732965098349,0.06743833,96380.0,96379.0,0.418071]
[1732965098852,0.06743833,96380.0,96379.0,0.416071]
[1732965099452,0.06743833,96380.0,96379.0,0.415655]
[1732965106865,0.06743833,96380.0,96379.0,0.551335]
[1732965107759,0.06743833,96380.0,96379.0,0.549335]
[1732965108070,0.06743833,96380.0,96379.0,0.415655]
[1732965108460,0.06743833,96380.0,96379.0,0.414655]
[1732965108771,0.06743833,96380.0,96379.0,0.415655]
[1732965116059,0.06743833,96380.0,96379.0,0.414655]
[1732965116255,0.06743833,96380.0,96379.0,0.415655]
[1732965116965,0.06743833,96380.0,96379.0,0.414655]
[1732965117160,0.06743833,96380.0,96379.0,0.415655]
[1732965117771,0.06743833,96380.0,96379.0,0.414655]
[1732965117963,0.06743833,96380.0,96379.0,0.551335]
[1732965118269,0.06886468,96380.0,96379.0,0.551335]
[1732965118757,0.06886468,96380.0,96379.0,0.549335]
[1732965118964,0.06886468,96380.0,96379.0,0.551335]
[1732965119457,0.06886468,96380.0,96379.0,0.550335]
[1732965119658,0.06886468,96380.0,96379.0,0.551335]
[1732965120474,0.06886468,96380.0,96379.0,0.550335]
[1732965120674,0.06886468,96380.0,96379.0,0.551335]
[1732965122376,0.06886468,96380.0,96379.0,0.413655]
[1732965122670,0.06886468,96380.0,96379.0,0.415655]
[1732965125069,0.051857,96377.0,96376.0,0.051856]
[1732965125264,0.051857,96377.0,96373.0,0.0121594]
[1732965125467,0.051858,96374.0,96373.0,0.051857]
[1732965125975,0.20817084,96374.0,96373.0,0.051857]
[1732965126177,0.20959719,96374.0,96373.0,0.051857]
[1732965126469,0.20969526,96374.0,96373.0,0.051857]
[1732965126676,0.20969526,96374.0,96373.0,0.053857]
[1732965126870,0.20969526,96374.0,96373.0,0.055857]
[1732965127780,0.20969526,96374.0,96365.0,0.3608]
[1732965127781,0.15783726,96374.0,96365.0,0.3608]
[1732965127964,0.051862,96367.0,96366.0,0.051862]
[1732965128164,0.05328835,96367.0,96366.0,0.051862]
[1732965128376,0.2089561,96367.0,96366.0,0.051862]
[1732965129767,0.2089561,96367.0,96366.0,0.059862]
[1732965133177,0.22125668,96367.0,96366.0,0.059862]
[1732965133984,0.1570941,96367.0,96366.0,0.059862]
[1732965136971,0.2089551,96367.0,96366.0,0.008]
[1732965138172,0.2089551,96367.0,96354.0,0.13556]
[1732965138173,0.051862,96366.0,96339.0,0.02075602]
[1732965138372,0.3608,96361.0,96340.0,0.05427849]
[1732965138580,0.0317,96360.0,96340.0,0.05427849]
[1732965138780,0.18830068,96360.0,96351.0,0.01220112]
[1732965139281,0.051868,96354.0,96348.0,0.051871]
[1732965139485,0.051868,96354.0,96353.0,0.3678]
[1732965139780,0.20843337,96354.0,96353.0,0.3768]
[1732965140175,0.20985972,96354.0,96353.0,0.016]
[1732965140379,0.20985972,96354.0,96353.0,0.007]
[1732965140576,0.20985972,96354.0,96353.0,0.016]
[1732965142076,0.21085972,96354.0,96353.0,0.009]
[1732965142272,0.21085972,96354.0,96346.0,7.581e-05]
[1732965142273,0.051872,96347.0,96346.0,7.581e-05]
[1732965142480,0.548272,96347.0,96346.0,7.581e-05]
[1732965142679,0.70326921,96347.0,96346.0,7.581e-05]
[1732965143271,0.70469556,96347.0,96320.0,0.05427849]
[1732965143476,0.412676,96339.0,96324.0,0.051884]
[1732965143871,0.56754943,96339.0,96324.0,0.051884]
[1732965144270,0.56897578,96339.0,96324.0,0.051884]
[1732965145480,0.56997578,96339.0,96338.0,0.01055674]
[1732965145876,0.57097578,96339.0,96338.0,0.01955674]
[1732965147676,0.57097578,96339.0,96338.0,0.018]
[1732965149973,0.70661578,96339.0,96338.0,0.018]
[1732965150174,0.34581578,96339.0,96338.0,0.018]
[1732965150390,0.70661578,96339.0,96338.0,0.018]
[1732965150992,0.57097578,96339.0,96338.0,0.018]
[1732965151185,0.70661578,96339.0,96338.0,0.018]
[1732965151489,0.71891549,96339.0,96338.0,0.018]
[1732965151884,0.58327549,96339.0,96338.0,0.018]
[1732965152277,0.71891549,96339.0,96338.0,0.018]
[1732965152984,0.58327549,96339.0,96338.0,0.018]
[1732965153188,0.30623949,96339.0,96338.0,0.069877]
[1732965153387,0.30623949,96339.0,96338.0,0.102777]
[1732965153577,0.17059949,96339.0,96338.0,0.102777]
[1732965155277,0.15829978,96339.0,96338.0,0.102777]
[1732965155782,0.15829978,96339.0,96338.0,0.269497]
[1732965158881,0.15829978,96339.0,96338.0,0.463577]
[1732965166481,0.15829978,96339.0,96338.0,0.48434117]
[1732965177496,0.15829978,96339.0,96329.0,0.051881]
[1732965177697,0.15829978,96339.0,96337.0,0.051877]
[1732965177698,0.0315,96338.0,96337.0,0.051877]
[1732965178198,0.18617242,96338.0,96337.0,0.051877]
[1732965178391,0.18759877,96338.0,96337.0,0.051877]
[1732965178591,0.18759877,96338.0,96326.0,0.02076505]
[1732965178788,0.051878,96335.0,96332.0,0.051879]
[1732965179097,0.15494841,96334.0,96333.0,0.051879]
[1732965179298,0.15637476,96334.0,96333.0,0.051879]
[1732965181493,0.15737476,96334.0,96333.0,0.051879]
[1732965181897,0.15837476,96334.0,96333.0,0.051879]
[1732965184997,0.21025376,96334.0,96333.0,0.051879]
[1732965185199,0.051882,96330.0,96329.0,0.051881]
[1732965185393,0.05330835,96330.0,96329.0,0.051881]
[1732965185594,0.20824539,96330.0,96329.0,0.051881]
[1732965185796,0.20824539,96330.0,96329.0,0.0644048]
[1732965186601,0.20924539,96330.0,96329.0,0.0664048]
[1732965187194,0.21024539,96330.0,96329.0,0.0734048]
[1732965187590,0.21024539,96330.0,96329.0,0.0215238]
[1732965187797,0.21024539,96330.0,96329.0,0.009]
[1732965188704,0.21024539,96330.0,96329.0,0.060881]
[1732965189598,0.15836339,96330.0,96329.0,0.060881]
[1732965189798,0.15736339,96330.0,96329.0,0.058881]
[1732965190005,0.15736339,96330.0,96329.0,0.060881]
[1732965190196,0.15636339,96330.0,96329.0,0.055881]
[1732965195101,0.20824439,96330.0,96329.0,0.055881]
[1732965195493,0.15636339,96330.0,96329.0,0.055881]
[1732965196598,0.20824439,96330.0,96329.0,0.055881]
[1732965198892,0.15636339,96330.0,96329.0,0.055881]
[1732965200302,0.20824439,96330.0,96329.0,0.055881]
[1732965201701,0.15636339,96330.0,96329.0,0.055881]
[1732965230327,0.20824439,96330.0,96329.0,0.055881]
[1732965238540,0.15636339,96330.0,96329.0,0.055881]
[1732965242339,0.00135054,96330.0,96329.0,0.191161]
[1732965242941,0.00135054,96330.0,96329.0,0.3775469]
[1732965243337,0.00135054,96330.0,96329.0,0.191161]
[1732965243640,0.00135054,96330.0,96329.0,0.222161]
[1732965244151,0.00235054,96330.0,96329.0,0.220161]
[1732965244335,0.00335054,96330.0,96329.0,0.226161]
[1732965244940,0.00335054,96330.0,96329.0,0.220161]
[1732965244941,0.00235054,96330.0,96329.0,0.220161]
[1732965245147,0.00335054,96330.0,96329.0,0.226161]
[1732965245748,0.00235054,96330.0,96329.0,0.220161]
[1732965245948,0.00235054,96330.0,96329.0,0.229161]
[1732965245949,0.00335054,96330.0,96329.0,0.229161]
[1732965246548,0.00335054,96330.0,96329.0,0.591961]
[1732965247346,0.00303887,96330.0,96329.0,0.591961]
[1732965249547,0.00303887,96330.0,96329.0,0.560841]
[1732965250544,0.00303887,96330.0,96329.0,0.58160684]
[1732965250736,0.00203887,96330.0,96329.0,0.57560684]
[1732965250935,0.00303887,96330.0,96329.0,0.58160684]
[1732965251148,0.00303887,96330.0,96329.0,0.57960684]
[1732965253151,0.15818501,96330.0,96329.0,0.558841]
[1732965254050,0.15818501,96330.0,96329.0,0.423681]
[1732965264555,0.15818501,96330.0,96329.0,0.454181]
[1732965264758,0.00303887,96330.0,96329.0,0.454181]
[1732965265256,0.00303887,96330.0,96329.0,0.814981]
[1732965265553,0.00303887,96330.0,96329.0,0.950141]
[1732965265958,0.00303887,96330.0,96329.0,0.9533854]
[1732965266561,0.00303887,96330.0,96329.0,0.9483854]
[1732965266562,0.00203887,96330.0,96329.0,0.9483854]
[1732965266756,0.00303887,96330.0,96329.0,0.9533854]
[1732965267761,0.00303887,96330.0,96329.0,0.950141]
[1732965268262,0.00303887,96330.0,96329.0,0.95338539]
[1732965268557,0.00303887,96330.0,96329.0,0.95662978]
[1732965270358,0.00303887,96330.0,96329.0,0.95338537]
[1732965273862,0.00303887,96330.0,96329.0,0.95338538]
[1732965274358,0.00303887,96330.0,96329.0,0.23178538]
[1732965274554,0.00303887,96330.0,96329.0,0.95338538]
[1732965275255,0.00303887,96330.0,96329.0,0.97414844]
[1732965277461,0.00303887,96330.0,96329.0,0.80848844]
[1732965277670,0.00303887,96330.0,96329.0,0.94356844]
[1732965278062,0.00303887,96330.0,96329.0,0.94032406]
[1732965279661,0.00303887,96330.0,96329.0,0.80524406]
[1732965288079,0.00303887,96330.0,96329.0,0.80848843]
[1732965289778,0.00303887,96330.0,96329.0,0.80524406]
[1732965290079,8.7e-07,96330.0,96329.0,0.80848844]
[1732965292988,8.7e-07,96330.0,96329.0,0.80524406]
[1732965293174,8.7e-07,96330.0,96329.0,0.80848836]
[1732965294584,0.0329,96346.0,96345.0,0.051872]
[1732965294789,0.0329,96346.0,96345.0,0.547752]
[1732965295086,0.18831424,96346.0,96345.0,0.547752]
[1732965295879,0.18831424,96346.0,96345.0,0.552752]
[1732965296787,0.18831424,96346.0,96345.0,0.417672]
[1732965299486,0.18831424,96346.0,96345.0,0.43004423]
[1732965302989,0.18831424,96346.0,96345.0,0.79084423]
[1732965303397,0.15541424,96346.0,96345.0,0.79084423]
[1732965303894,0.15535426,96350.0,96349.0,0.051866]
[1732965304102,0.15535426,96346.0,96345.0,0.79136423]
[1732965304410,0.0325,96359.0,96346.0,0.051867]
[1732965304411,0.15535426,96350.0,96346.0,0.051867]
[1732965304590,0.15535426,96350.0,96345.0,0.79084423]
[1732965304591,0.15535426,96350.0,96349.0,0.051866]
[1732965304896,0.0325,96359.0,96345.0,0.79136423]
[1732965304897,0.15659614,96349.0,96345.0,0.79136423]
[1732965305194,0.0325,96359.0,96349.0,0.051866]
[1732965305396,0.0325,96359.0,96345.0,0.78936423]
[1732965305588,0.0325,96359.0,96350.0,0.051865]
[1732965305991,0.04001308,96351.0,96350.0,0.051865]
[1732965306794,0.0384559,96351.0,96350.0,0.051865]
[1732965307195,0.15497464,96352.0,96350.0,0.051865]
[1732965307605,0.15497464,96351.0,96350.0,0.051865]
[1732965307905,0.0325,96359.0,96352.0,0.051864]
[1732965308402,0.16380085,96353.0,96352.0,0.051864]
[1732965309306,0.16480085,96353.0,96352.0,0.051864]
[1732965309605,0.16580085,96353.0,96352.0,0.051864]
[1732965309802,0.13290085,96353.0,96352.0,0.051864]
[1732965313196,0.13190085,96353.0,96352.0,0.051864]
[1732965313401,0.13090085,96353.0,96352.0,0.055864]
[1732965313702,0.13090085,96353.0,96352.0,0.060864]
[1732965313703,0.13190085,96353.0,96352.0,0.060864]
[1732965314304,0.13190085,96353.0,96352.0,0.24710684]
[1732965315508,9.807e-05,96374.0,96373.0,0.051853]
[1732965315704,9.807e-05,96374.0,96373.0,0.908413]
[1732965315904,0.15409807,96374.0,96368.0,0.051855]
[1732965316099,0.15409807,96374.0,96369.0,0.051855]
[1732965317011,0.15709807,96374.0,96369.0,0.051855]
[1732965317204,0.15709807,96374.0,96370.0,0.051854]
[1732965317713,0.15709807,96374.0,96371.0,0.3608]
[1732965318115,0.15709807,96374.0,96371.0,0.412654]
[1732965318409,0.15709807,96374.0,96371.0,0.3608]
[1732965318410,0.15909807,96374.0,96371.0,0.3608]
[1732965318607,0.15709807,96374.0,96371.0,0.3608]
[1732965319304,0.15609807,96374.0,96371.0,0.3608]
[1732965319512,0.15709807,96374.0,96371.0,0.3608]
[1732965319707,0.15709807,96374.0,96372.0,0.051853]
[1732965320408,0.15709807,96374.0,96373.0,0.051853]
[1732965322528,0.15909807,96374.0,96373.0,0.051853]
[1732965322709,0.15609807,96374.0,96373.0,0.051853]
[1732965323010,0.15909807,96374.0,96371.0,0.37304517]
[1732965323201,0.051853,96373.0,96371.0,0.37304517]
[1732965323405,0.15909807,96374.0,96372.0,0.051853]
[1732965323606,0.00509807,96374.0,96372.0,0.051853]
[1732965323802,0.00509807,96374.0,96371.0,0.37304517]
[1732965324017,0.00509807,96374.0,96373.0,0.051853]
[1732965324415,0.16063074,96374.0,96373.0,0.051853]
[1732965325111,0.15763074,96374.0,96373.0,0.051853]
[1732965325409,0.15563074,96374.0,96373.0,0.051853]
[1732965325605,0.15663074,96374.0,96373.0,0.051853]
[1732965325807,0.15963074,96374.0,96373.0,0.051853]
[1732965326712,0.15863074,96374.0,96373.0,0.051853]
[1732965326919,0.16063074,96374.0,96373.0,0.051853]
[1732965337418,0.16063074,96374.0,96373.0,0.186653]
[1732965338218,0.16063074,96374.0,96363.0,0.051858]
[1732965338219,0.051853,96373.0,96363.0,0.051858]
[1732965338421,0.051853,96372.0,96364.0,0.186657]
[1732965338617,0.20805823,96372.0,96364.0,0.186657]
[1732965338918,0.20805823,96372.0,96364.0,0.1348]
[1732965339119,0.20805823,96372.0,96365.0,0.051857]
[1732965339320,0.20805823,96372.0,96364.0,0.1348]
[1732965339722,0.20805823,96372.0,96368.0,0.051855]
[1732965339919,0.20805823,96372.0,96364.0,0.1348]
[1732965340116,0.20805823,96372.0,96369.0,0.051855]
[1732965341021,0.20805823,96372.0,96370.0,0.051854]
[1732965341416,0.15620523,96372.0,96364.0,0.001]
[1732965341716,0.15720523,96372.0,96368.0,0.051855]
[1732965342025,0.15720523,96372.0,96361.0,0.3608]
[1732965342215,0.15920523,96372.0,96361.0,0.3608]
[1732965342419,0.15920523,96372.0,96370.0,0.051854]
[1732965342827,0.15720523,96372.0,96370.0,0.051854]
[1732965343017,0.15820523,96372.0,96370.0,0.051854]
[1732965344723,0.15720523,96372.0,96370.0,0.051854]
[1732965345321,0.20905823,96372.0,96370.0,0.051854]
[1732965345720,0.21105823,96372.0,96370.0,0.051854]
[1732965346430,0.051854,96371.0,96370.0,0.051854]
[1732965346920,0.20805458,96371.0,96370.0,0.051854]
[1732965348016,0.20905458,96371.0,96370.0,0.051854]
[1732965348416,0.21105458,96371.0,96370.0,0.051854]
[1732965349617,0.15920058,96371.0,96370.0,0.051854]
[1732965353934,0.15920058,96371.0,96370.0,0.084854]
[1732965355419,0.15920058,96371.0,96370.0,0.219654]
[1732965363430,0.15920058,96371.0,96370.0,0.941254]
[1732965367335,0.15920058,96371.0,96370.0,0.941134]
[1732965375454,0.15920058,96371.0,96370.0,0.773454]
[1732965375743,0.15920058,96371.0,96370.0,0.908134]
[1732965378253,0.15920058,96371.0,96370.0,0.547334]
[1732965382148,0.15920058,96371.0,96370.0,0.55057702]
[1732965382449,0.15920058,96371.0,96370.0,0.547334]
[1732965384348,0.15920058,96371.0,96370.0,0.55057702]
[1732965385443,0.15920058,96371.0,96370.0,0.547334]
[1732965387242,0.15720058,96371.0,96370.0,0.547334]
[1732965387442,0.15820058,96371.0,96370.0,0.547334]
[1732965387639,0.15820058,96371.0,96370.0,0.55057702]
[1732965388148,0.15820058,96371.0,96370.0,0.547334]
[1732965388343,0.15820058,96371.0,96370.0,0.55057694]
[1732965390057,0.15820058,96371.0,96370.0,0.91137694]
[1732965393343,0.15820058,96371.0,96370.0,0.91133694]
[1732965394343,0.15820058,96371.0,96370.0,0.77669694]
[1732965394546,0.15820058,96371.0,96370.0,0.92949742]
[1732965394739,0.15820058,96371.0,96370.0,1.1161388]
[1732965394949,0.15820058,96371.0,96370.0,0.908094]
[1732965395142,0.15820058,96371.0,96370.0,0.91328287]
[1732965395346,0.15820058,96371.0,96370.0,0.908094]
[1732965395647,0.15820058,96371.0,96370.0,1.11613957]
[1732965395850,0.15820058,96371.0,96370.0,1.10316733]
[1732965396052,0.15820058,96371.0,96370.0,0.908094]
[1732965398448,0.15820058,96371.0,96370.0,0.773454]
[1732965398742,0.15820058,96371.0,96370.0,0.907974]
[1732965400043,0.15820058,96371.0,96370.0,1.15684339]
[1732965402148,0.15820058,96371.0,96370.0,0.907974]
[1732965404357,0.15820058,96371.0,96370.0,0.186374]
[1732965404551,0.15820058,96371.0,96370.0,0.907974]
[1732965405544,0.15820058,96371.0,96370.0,1.15684339]
[1732965406858,0.15820058,96371.0,96370.0,0.907974]
[1732965407564,0.15820058,96371.0,96370.0,0.91121707]
[1732965410550,0.15820058,96371.0,96370.0,0.18961707]
[1732965410746,0.15820058,96371.0,96370.0,0.91121707]
[1732965411453,0.15820058,96371.0,96370.0,0.18961707]
[1732965411662,0.15820058,96371.0,96370.0,0.91121707]
[1732965415554,0.15820058,96371.0,96370.0,0.77669707]
[1732965415856,0.15820058,96371.0,96370.0,0.91121707]
[1732965420865,0.15620058,96371.0,96370.0,0.91221707]
[1732965421156,0.08445412,96373.0,96370.0,0.91421707]
[1732965421360,0.08445412,96373.0,96372.0,0.051853]
[1732965421562,0.15496614,96371.0,96370.0,0.911494]
[1732965421768,0.15496614,96371.0,96370.0,0.91421707]
[1732965421961,0.08568856,96372.0,96371.0,0.051854]
[1732965422260,0.0024644,96373.0,96370.0,0.911574]
[1732965422470,0.15496614,96371.0,96370.0,0.910974]
[1732965422661,9.807e-05,96374.0,96373.0,0.051853]
[1732965422862,9.807e-05,96374.0,96373.0,0.30084114]
[1732965423268,0.00075191,96374.0,96373.0,0.30084114]
[1732965424570,0.00075191,96374.0,96373.0,0.051853]
[1732965424866,0.00075191,96374.0,96373.0,0.052853]
[1732965425079,0.00075191,96374.0,96373.0,0.30185926]
[1732965425870,0.00075191,96374.0,96373.0,0.187373]
[1732965430070,0.00075191,96374.0,96373.0,0.052853]
[1732965430369,0.00075191,96374.0,96373.0,0.001]
[1732965430573,0.00075191,96374.0,96371.0,0.3109]
[1732965430874,0.051853,96372.0,96371.0,0.3109]
[1732965431272,0.20717291,96372.0,96371.0,0.3109]
[1732965431777,0.20717291,96372.0,96371.0,0.3129]
[1732965432075,0.15531991,96372.0,96371.0,0.3139]
[1732965432277,0.15531991,96372.0,96371.0,0.365754]
[1732965433369,0.15531991,96372.0,96371.0,0.363754]
[1732965433572,0.15531991,96372.0,96371.0,0.365754]
[1732965437679,0.15531991,96372.0,96371.0,0.054854]
[1732965446476,0.15531991,96372.0,96371.0,0.24159499]
[1732965446973,0.15531991,96372.0,96371.0,0.054854]
[1732965448485,9.807e-05,96374.0,96373.0,0.051853]
[1732965448989,0.00056166,96374.0,96373.0,0.051853]
[1732965449488,0.00056166,96374.0,96373.0,0.412653]
[1732965450479,0.00056166,96374.0,96373.0,0.413653]
[1732965452285,0.00056166,96374.0,96373.0,0.415653]
[1732965452485,0.00056166,96374.0,96373.0,0.41889579]
[1732965453294,0.00056166,96374.0,96373.0,0.41789579]
[1732965453493,0.00056166,96374.0,96373.0,0.42189579]
[1732965454501,0.00056166,96374.0,96373.0,0.418653]
[1732965455494,0.00056166,96374.0,96373.0,0.4218958]
[1732965456191,0.00056166,96374.0,96373.0,0.418653]
[1732965456787,0.00056166,96374.0,96373.0,0.42189583]
[1732965457190,0.00056166,96374.0,96373.0,0.418653]
[1732965461303,0.00056166,96374.0,96373.0,0.43940627]
[1732965463393,0.00056166,96374.0,96373.0,0.07860627]
[1732965463594,0.00056166,96374.0,96373.0,0.80020627]
[1732965471211,0.00056166,96374.0,96373.0,0.80344915]
[1732965471711,0.00056166,96374.0,96373.0,0.80020627]
[1732965472211,0.00056166,96374.0,96373.0,0.80344916]
[1732965474504,0.00056166,96374.0,96373.0,0.98996822]
[1732965474695,0.00056166,96374.0,96373.0,0.98672533]
[1732965475307,0.00056166,96374.0,96373.0,0.80020627]
[1732965475707,0.00056166,96374.0,96373.0,0.98674388]
[1732965476406,0.00056166,96374.0,96373.0,0.80020627]
[1732965476606,0.00056166,96374.0,96373.0,0.98676784]
[1732965477410,0.00056166,96374.0,96373.0,0.80020627]
[1732965480404,0.00056166,96374.0,96373.0,1.04881954]
[1732965481008,0.00056166,96374.0,96373.0,0.80020627]
[1732965482801,0.00056166,96374.0,96373.0,0.80344922]
[1732965483900,0.00056166,96374.0,96373.0,0.08184922]
[1732965484113,0.00056166,96374.0,96373.0,0.80344922]
[1732965484511,0.00056166,96374.0,96373.0,0.08184922]
[1732965484718,0.00056166,96374.0,96373.0,0.80344921]
[1732965487203,0.00056166,96374.0,96373.0,0.93772921]
[1732965488613,0.00056166,96374.0,96373.0,1.18634248]
[1732965489723,0.00056166,96374.0,96373.0,1.1863425]
[1732965494417,0.00056166,96374.0,96373.0,0.93772923]
[1732965494619,0.00097767,96374.0,96373.0,0.73084296]
[1732965494822,0.00097767,96374.0,96357.0,0.02075327]
[1732965494823,1.11496166,96374.0,96357.0,0.18679578]
[1732965495015,0.3608,96358.0,96341.0,0.3608]
[1732965495210,0.051862,96356.0,96348.0,0.05427849]
[1732965495417,0.0928,96355.0,96348.0,0.05427849]
[1732965495718,0.24862883,96355.0,96348.0,0.05427849]
[1732965496225,0.30049083,96355.0,96348.0,0.05427849]
[1732965496917,0.30149083,96355.0,96353.0,0.00755639]
[1732965497428,0.30249083,96355.0,96353.0,0.01055639]
[1732965497824,0.25062883,96355.0,96353.0,0.01055639]
[1732965500023,0.24962883,96355.0,96353.0,0.00755639]
[1732965500221,0.25062883,96355.0,96353.0,0.01055639]
[1732965500920,0.25062883,96355.0,96353.0,0.02267513]
[1732965501924,0.25062883,96355.0,96353.0,0.07453813]
[1732965502827,0.24962883,96355.0,96353.0,0.06853813]
[1732965503024,0.25062883,96355.0,96353.0,0.07453813]
[1732965503219,0.15782883,96355.0,96354.0,0.00416002]
[1732965504535,0.15782883,96355.0,96354.0,0.00516002]
[1732965506023,0.15682883,96355.0,96354.0,0.03696002]
[1732965506228,0.15682883,96355.0,96354.0,0.04296002]
[1732965506229,0.15782883,96355.0,96354.0,0.04296002]
[1732965508431,0.002,96355.0,96354.0,0.04296002]
[1732965508821,9.807e-05,96374.0,96354.0,0.04296002]
[1732965509126,9.807e-05,96374.0,96373.0,0.3608]
[1732965509527,0.1563979,96374.0,96373.0,0.3608]
[1732965510231,0.1583979,96374.0,96373.0,0.3608]
[1732965510732,0.1563979,96374.0,96373.0,0.3618]
[1732965510932,0.1563979,96374.0,96373.0,0.3628]
[1732965520233,0.051841,96396.0,96373.0,0.3628]
[1732965520434,0.051841,96396.0,96387.0,0.051845]
[1732965520628,0.051841,96396.0,96386.0,0.05427849]
[1732965520629,0.051841,96396.0,96388.0,0.051844]
[1732965520830,0.00027168,96395.0,96388.0,0.051844]
[1732965521036,0.00027168,96395.0,96389.0,0.051844]
[1732965521240,0.00027168,96395.0,96391.0,0.051843]
[1732965521438,0.0001239,96394.0,96391.0,0.051843]
[1732965521837,0.0001239,96394.0,96386.0,0.05427849]
[1732965522145,0.00027168,96393.0,96392.0,0.051842]
[1732965523435,0.00427168,96393.0,96392.0,0.051842]
[1732965523641,0.01227168,96393.0,96392.0,0.051842]
[1732965534341,0.06411368,96393.0,96392.0,0.051842]
[1732965538738,0.06411368,96393.0,96386.0,0.37288212]
[1732965538939,0.06411368,96393.0,96317.0,0.26738016]
[1732965538940,0.051849,96380.0,96379.0,0.051849]
[1732965539233,0.051849,96380.0,96379.0,0.185849]
[1732965539445,0.20772286,96380.0,96379.0,0.05600902]
[1732965540252,0.20972286,96380.0,96379.0,0.05600902]
[1732965540858,0.21072286,96380.0,96379.0,0.06836747]
[1732965544143,0.15887386,96380.0,96379.0,0.10166747]
[1732965544646,0.15887386,96380.0,96379.0,0.13356747]
[1732965551661,0.15887386,96380.0,96379.0,0.26740747]
[1732965554054,0.15887386,96380.0,96379.0,0.62829205]
[1732965558147,0.15887386,96380.0,96379.0,0.63153478]
[1732965558654,0.15887386,96380.0,96379.0,0.62829205]
[1732965558850,0.15887386,96380.0,96379.0,0.6315348]
[1732965559953,0.15887386,96380.0,96379.0,0.63153477]
[1732965560452,0.15887386,96380.0,96379.0,0.63153476]
[1732965560758,0.15887386,96380.0,96379.0,0.62829205]
[1732965561260,0.15887386,96380.0,96379.0,0.49445205]
[1732965561456,0.15887386,96380.0,96379.0,0.62825205]
[1732965562676,0.15887386,96380.0,96379.0,0.59635205]
[1732965583465,0.15887386,96380.0,96379.0,0.59619205]
[1732965586076,0.15887386,96380.0,96379.0,0.46255205]
[1732965586275,0.15887386,96380.0,96379.0,0.59619205]
[1732965586472,0.15887386,96380.0,96379.0,0.56289205]
[1732965605783,0.15887386,96380.0,96379.0,0.42925205]
[1732965606081,0.15887386,96380.0,96379.0,0.55873203]
[1732965610397,0.15787386,96380.0,96379.0,0.56273203]
[1732965610784,0.15687386,96380.0,96379.0,0.56673203]
[1732965614800,0.15687386,96380.0,96379.0,0.75349972]
[1732965616201,0.15687386,96380.0,96379.0,0.56673203]
[1732965617085,0.15687386,96380.0,96379.0,0.20593203]
[1732965617290,0.15687386,96380.0,96379.0,0.56673203]
[1732965620596,0.15687386,96380.0,96379.0,0.57089205]
[1732965639002,0.15687386,96380.0,96379.0,0.93169205]
[1732965641200,0.15687386,96380.0,96379.0,0.21009205]
[1732965641399,0.15687386,96380.0,96379.0,0.93169205]
[1732965647107,0.15687386,96380.0,96379.0,1.18055375]
[1732965647413,0.15687386,96380.0,96379.0,0.93169205]
[1732965655918,0.15687386,96380.0,96379.0,1.11840396]
[1732965656222,0.15687386,96380.0,96379.0,1.11840382]
[1732965656519,0.01247732,96391.0,96390.0,0.051844]
[1732965656711,0.0001239,96394.0,96393.0,0.051842]
[1732965656914,0.0001239,96394.0,96393.0,0.412642]
[1732965657317,0.00453415,96394.0,96393.0,0.412642]
[1732965657519,0.01706806,96394.0,96393.0,0.412642]
[1732965657724,0.00453415,96394.0,96393.0,0.412642]
[1732965660626,0.0001239,96394.0,96393.0,0.412642]
[1732965662318,0.0001239,96394.0,96393.0,0.42503451]
[1732965663625,0.0001239,96394.0,96393.0,0.37319251]
[1732965665827,0.15483504,96394.0,96393.0,0.37319251]
[1732965666326,0.15483504,96394.0,96393.0,0.3608]
[1732965666526,0.25003504,96394.0,96393.0,0.3608]
[1732965668232,0.051842,96393.0,96391.0,0.01225215]
[1732965668419,0.051843,96391.0,96389.0,0.3608]
[1732965668821,0.15544608,96390.0,96389.0,0.3608]
[1732965669630,0.15544608,96390.0,96389.0,0.3638]
[1732965670223,0.15544608,96390.0,96389.0,0.3608]
[1732965670531,0.15544608,96390.0,96389.0,0.3648]
[1732965673234,0.15544608,96390.0,96389.0,0.004]
[1732965673429,0.15544608,96390.0,96389.0,0.3648]
[1732965678437,0.0001239,96394.0,96389.0,0.3648]
[1732965678652,0.05427849,96430.0,96393.0,0.3608]
[1732965678941,0.05427849,96430.0,96411.0,0.3608]